Workbook

Sheet паспорт
A1: ПАТ "УКРТРАНСГАЗ" | G1: ПАСПОРТ ФІЗИКО-ХІМІЧНИХ ПОКАЗНИКІВ ПРИРОДНОГО ГАЗУ № 163
A2: Філія "УМГ "КИЇВТРАНСГАЗ" | G2: переданого Чернігівським ЛВУМГ та прийнятого ПАТ "Чернігівгаз", ПАТ "Київоблгаз"
A3: Чернігівське ЛВУМГ | G3: Маршрут № 163
A4: Вимірювальна хіміко-аналітична лабораторія
A5: Свідоцтво № 74/2014 чинно до 01.07.2019 р. | K5: по газопроводу "ДАШАВА-КИЇВ-БРЯНСЬК-МОСКВА" | V5: за період з | X5: 2017-05-01 | Z5: по | AA5: 2017-05-31
A7: Число місяця | B7: Компонентний склад, % мол. | N7: Фізико-хімічні показники газу обчислені на основі компонентного складу, 101,325 кПа | X7: Температура точки роси за вологою (Р = 3.92 МПа), ºС | Y7: Температура точки роси за вуглеводнями, ºС | Z7: Вміст сірководню, г/м3 | AA7: Вміст меркаптанової сірки, г/м3 | AB7: Вміст механічних домішок, г/м3
N8: Густина абсолютна, кг/м3,при 20 ºС, | O8: Температура вимірювання/згоряння при 20/25°С
B9: метан, С1 | C9: етан, С2 | D9: пропан, С3 | E9: ізо-бутан, і-С4 | F9: н-бутан, н-С4 | G9: нео-пентан, нео-С5 | H9: ізо-пентан, і-С5 | I9: н-пентан, н-С5 | J9: гексани та вищі, С6+ | K9: кисень, О2 | L9: азот, N2 | M9: діоксид вуглецю, CО2 | O9: Теплота згоряння нижча | R9: Теплота згоряння вища | U9: Число Воббе вище
O10: ккал/м3 | P10: МДж/м3 | Q10: кВт⋅год/м3 | R10: ккал/м3 | S10: МДж/м3 | T10: кВт⋅год/м3 | U10: ккал/м3 | V10: МДж/м3 | W10: кВт⋅год/м3
A11: 1 | O11: 8201 | P11: 34.34 | Q11: 9.54 | R11: 9081 | S11: 38.02 | T11: 10.56 | AC11: =SUM(B11:M11)+$K$42+$N$42 -> 0
A12: 2 | B12: 89.7365 | C12: 4.95 | D12: 1.1059 | E12: 0.1209 | F12: 0.2052 | G12: 0.0037 | H12: 0.0524 | I12: 0.0381 | J12: 0.0306 | K12: 0.0039 | L12: 1.7661 | M12: 1.9866 | N12: 0.7511 | O12: 8225 | P12: 34.43 | Q12: 9.56 | R12: 9106 | S12: 38.12 | T12: 10.59 | U12: 11531 | V12: 48.28 | W12: 13.41 | X12: -10.2 | Y12: -9.6 | Z12: 0.0001 | AA12: 0.0004 | AB12: відс. | AC12: 99.9999
A13: 3 | O13: 8225 | P13: 34.43 | Q13: 9.56 | R13: 9106 | S13: 38.12 | T13: 10.59 | AC13: 0 | AD13: =IF(AC13=100,"ОК"," ") -> 
A14: 4 | O14: 8225 | P14: 34.43 | Q14: 9.56 | R14: 9106 | S14: 38.12 | T14: 10.59 | AC14: 0 | AD14: =IF(AC14=100,"ОК"," ") -> 
A15: 5 | O15: 8225 | P15: 34.43 | Q15: 9.56 | R15: 9106 | S15: 38.12 | T15: 10.59 | AC15: 0
A16: 6 | O16: 8225 | P16: 34.43 | Q16: 9.56 | R16: 9106 | S16: 38.12 | T16: 10.59 | AC16: 0
A17: 7 | O17: 8225 | P17: 34.43 | Q17: 9.56 | R17: 9106 | S17: 38.12 | T17: 10.59 | AC17: 0
A18: 8 | O18: 8225 | P18: 34.43 | Q18: 9.56 | R18: 9106 | S18: 38.12 | T18: 10.59 | AC18: =SUM(B18:M18)+$K$42+$N$42 -> 0
A19: 9 | B19: 89.8782 | C19: 4.903 | D19: 1.0987 | E19: 0.115 | F19: 0.1793 | G19: 0.0036 | H19: 0.0494 | I19: 0.0378 | J19: 0.04 | K19: 0.0036 | L19: 1.6869 | M19: 2.0046 | N19: 0.7502 | O19: 8222 | P19: 34.42 | Q19: 9.56 | R19: 9103 | S19: 38.11 | T19: 10.59 | U19: 11534 | V19: 48.29 | W19: 13.41 | X19: -10 | Y19: -10.2 | Z19: 0.0001 | AA19: 0.0004 | AB19: відс. | AC19: 100.0001
A20: 10 | O20: 8222 | P20: 34.42 | Q20: 9.56 | R20: 9103 | S20: 38.11 | T20: 10.59 | AC20: 0
A21: 11 | O21: 8222 | P21: 34.42 | Q21: 9.56 | R21: 9103 | S21: 38.11 | T21: 10.59 | AC21: 0
A22: 12 | O22: 8222 | P22: 34.42 | Q22: 9.56 | R22: 9103 | S22: 38.11 | T22: 10.59 | AC22: 0
A23: 13 | O23: 8222 | P23: 34.42 | Q23: 9.56 | R23: 9103 | S23: 38.11 | T23: 10.59 | AC23: 0
A24: 14 | O24: 8222 | P24: 34.42 | Q24: 9.56 | R24: 9103 | S24: 38.11 | T24: 10.59 | AC24: 0
A25: 15 | B25: 89.648 | C25: 4.9968 | D25: 1.1002 | E25: 0.1189 | F25: 0.2087 | G25: 0.0045 | H25: 0.0534 | I25: 0.0389 | J25: 0.0325 | K25: 0.0042 | L25: 1.7325 | M25: 2.0614 | N25: 0.7521 | O25: 8225 | P25: 34.44 | Q25: 9.57 | R25: 9106 | S25: 38.13 | T25: 10.59 | U25: 11524 | V25: 48.25 | W25: 13.4 | X25: -10.8 | Y25: -10.2 | Z25: 0.0001 | AA25: 0.0004 | AB25: відс. | AC25: 100 | AD25: ОК
A26: 16 | O26: 8225 | P26: 34.44 | Q26: 9.57 | R26: 9106 | S26: 38.13 | T26: 10.59 | AC26: 0
A27: 17 | O27: 8225 | P27: 34.44 | Q27: 9.57 | R27: 9106 | S27: 38.13 | T27: 10.59 | AC27: 0
A28: 18 | O28: 8225 | P28: 34.44 | Q28: 9.57 | R28: 9106 | S28: 38.13 | T28: 10.59 | AC28: 0
A29: 19 | O29: 8225 | P29: 34.44 | Q29: 9.57 | R29: 9106 | S29: 38.13 | T29: 10.59 | AC29: 0
A30: 20 | O30: 8225 | P30: 34.44 | Q30: 9.57 | R30: 9106 | S30: 38.13 | T30: 10.59 | AC30: 0 | AD30: =IF(AC30=100,"ОК"," ") -> 
A31: 21 | O31: 8225 | P31: 34.44 | Q31: 9.57 | R31: 9106 | S31: 38.13 | T31: 10.59 | AC31: 0
A32: 22 | O32: 8225 | P32: 34.44 | Q32: 9.57 | R32: 9106 | S32: 38.13 | T32: 10.59 | AC32: 0
A33: 23 | B33: 89.9124 | C33: 4.8376 | D33: 1.0823 | E33: 0.1204 | F33: 0.2274 | G33: 0.0036 | H33: 0.0554 | I33: 0.0416 | J33: 0.0315 | K33: 0.0033 | L33: 1.7101 | M33: 1.9746 | N33: 0.7503 | O33: 8226 | P33: 34.44 | Q33: 9.57 | R33: 9107 | S33: 38.13 | T33: 10.59 | U33: 11539 | V33: 48.31 | W33: 13.42 | X33: -8.6 | Y33: -9 | Z33: 0.0001 | AA33: 0.0004 | AB33: відс. | AC33: 100.0002 | AD33: =IF(AC33=100,"ОК"," ") -> 
A34: 24 | O34: 8226 | P34: 34.44 | Q34: 9.57 | R34: 9107 | S34: 38.13 | T34: 10.59 | AC34: 0
A35: 25 | O35: 8226 | P35: 34.44 | Q35: 9.57 | R35: 9107 | S35: 38.13 | T35: 10.59 | AC35: 0
A36: 26 | O36: 8226 | P36: 34.44 | Q36: 9.57 | R36: 9107 | S36: 38.13 | T36: 10.59 | AC36: 0
A37: 27 | O37: 8226 | P37: 34.44 | Q37: 9.57 | R37: 9107 | S37: 38.13 | T37: 10.59 | AC37: 0
A38: 28 | O38: 8226 | P38: 34.44 | Q38: 9.57 | R38: 9107 | S38: 38.13 | T38: 10.59 | AC38: 0
A39: 29 | O39: 8226 | P39: 34.44 | Q39: 9.57 | R39: 9107 | S39: 38.13 | T39: 10.59 | AC39: 0
A40: 30 | B40: 90.1612 | C40: 4.6784 | D40: 1.0827 | E40: 0.1154 | F40: 0.2085 | G40: 0.0031 | H40: 0.0509 | I40: 0.0366 | J40: 0.0203 | K40: 0.005 | L40: 1.6979 | M40: 1.94 | N40: 0.7479 | O40: 8209 | P40: 34.37 | Q40: 9.55 | R40: 9090 | S40: 38.06 | T40: 10.57 | U40: 11534 | V40: 48.29 | W40: 13.41 | X40: -8.8 | Y40: -9.6 | Z40: 0.0001 | AA40: 0.0004 | AB40: відс. | AC40: 100
A41: 31 | O41: 8209 | P41: 34.37 | Q41: 9.55 | R41: 9090 | S41: 38.06 | T41: 10.57 | AC41: 0
A42: Рівень одоризації відповідає чинним нормативним документам | O42: =SUMPRODUCT(O11:O41,' розрахунок'!L7:L37)/' розрахунок'!L38 -> 8222.881759 | P42: =SUMPRODUCT(P11:P41,' розрахунок'!L7:L37)/' розрахунок'!L38 -> 34.42593599 | Q42: =SUMPRODUCT(Q11:Q41,' розрахунок'!L7:L37)/' розрахунок'!L38 -> 9.563160661 | R42: =SUMPRODUCT(R11:R41,' розрахунок'!L7:L37)/' розрахунок'!L38 -> 9103.851581 | S42: =SUMPRODUCT(S11:S41,' розрахунок'!L7:L37)/' розрахунок'!L38 -> 38.11563421 | T42: =SUMPRODUCT(T11:T41,' розрахунок'!L7:L37)/' розрахунок'!L38 -> 10.58827257
H43: Середньозважене значення теплоти згоряння:
B46: Начальник управління Чернігівського ЛВУМГ Шутішин В.О. 01.06.2017 р.
C47: Підрозділу підприємства, якому підпорядкована лабораторія | O47: прізвище | R47: підпис | V47: дата
B48: Завідувач лабораторією Лапа І.О. 01.06.2017 р.
C49: Лабораторія, де здійснювалось вимірювання газу | O49: прізвище | R49: підпис | V49: дата
B50: Начальник служби газовимірювання та метрології Макаров О.В. 01.06.2017 р.
C51: Підрозділу, відповідального за облік газу за маршрутом | O51: прізвище | R51: підпис | V51: дата

Sheet розрахунок
A2: Додаток до Паспорту фізико-хімічних показників природного газу по маршруту № 163
A4: Число місяця | B4: Теплота згоряння вища, МДж/м3 | C4: Чернігівська область | J4: Київська область | L4: Загальний обсяг газу, м3
C5: Обсяг газу переданого за добу, м3
C6: ГРС Остер | D6: ГРС Козелець | E6: ГРС Чемер | F6: ГРС Десна | G6: ГРС Булахів | H6: ГРС Мостище | I6: ГРС Бобровиця | J6: ГРС В. Дубечня | K6: ГРС Жукин
A7: 1 | B7: 38.02 | C7: 3255 | D7: 7366 | E7: 1526 | F7: 1867 | G7: 2251 | H7: 2171 | I7: 11909 | J7: 11714 | K7: 3161 | L7: =SUM(C7:K7) -> 45220
A8: 2 | B8: 38.12 | C8: 3605 | D8: 8581 | E8: 1683 | F8: 1988 | G8: 2428 | H8: 2090 | I8: 24630 | J8: 10735 | K8: 2798 | L8: 58538
A9: 3 | B9: 38.12 | C9: 2868 | D9: 7570 | E9: 1345 | F9: 1739 | G9: 1847 | H9: 2021 | I9: 19183 | J9: 9164 | K9: 1649 | L9: 47386
A10: 4 | B10: 38.12 | C10: 2493 | D10: 7299 | E10: 1299 | F10: 1563 | G10: 1733 | H10: 1497 | I10: 23603 | J10: 7431 | K10: 1225 | L10: 48143
A11: 5 | B11: 38.12 | C11: 2495 | D11: 6247 | E11: 1324 | F11: 1598 | G11: 1647 | H11: 1223 | I11: 9880 | J11: 7797 | K11: 1778 | L11: 33989
A12: 6 | B12: 38.12 | C12: 2324 | D12: 6138 | E12: 1278 | F12: 1671 | G12: 2030 | H12: 1538 | I12: 18678 | J12: 7611 | K12: 1560 | L12: 42828
A13: 7 | B13: 38.12 | C13: 2082 | D13: 5328 | E13: 1104 | F13: 1545 | G13: 1754 | H13: 1109 | I13: 18148 | J13: 6638 | K13: 1155 | L13: 38863
A14: 8 | B14: 38.12 | C14: 2452 | D14: 6455 | E14: 1282 | F14: 1544 | G14: 1401 | H14: 1567 | I14: 13997 | J14: 7866 | K14: 1609 | L14: 38173
A15: 9 | B15: 38.11 | C15: 3637 | D15: 10248 | E15: 1658 | F15: 1961 | G15: 2157 | H15: 2556 | I15: 23384 | J15: 11630 | K15: 2971 | L15: 60202
A16: 10 | B16: 38.11 | C16: 5644 | D16: 18301 | E16: 2711 | F16: 2365 | G16: 3138 | H16: 4235 | I16: 33823 | J16: 14975 | K16: 3633 | L16: 88825
A17: 11 | B17: 38.11 | C17: 5642 | D17: 17916 | E17: 2517 | F17: 2404 | G17: 2847 | H17: 3801 | I17: 21791 | J17: 13841 | K17: 3158 | L17: 73917
A18: 12 | B18: 38.11 | C18: 5394 | D18: 16858 | E18: 2405 | F18: 2172 | G18: 3127 | H18: 3517 | I18: 29441 | J18: 12314 | K18: 2832 | L18: 78060
A19: 13 | B19: 38.11 | C19: 6276 | D19: 19726 | E19: 3056 | F19: 2573 | G19: 3840 | H19: 4113 | I19: 23721 | J19: 15385 | K19: 3082 | L19: 81772
A20: 14 | B20: 38.11 | C20: 4544 | D20: 13719 | E20: 1986 | F20: 2344 | G20: 2842 | H20: 3402 | I20: 29577 | J20: 14069 | K20: 2811 | L20: 75294
A21: 15 | B21: 38.13 | C21: 2800 | D21: 8472 | E21: 1336 | F21: 1727 | G21: 1925 | H21: 2091 | I21: 17526 | J21: 9455 | K21: 2165 | L21: 47497
A22: 16 | B22: 38.13 | C22: 2658 | D22: 7912 | E22: 1318 | F22: 1605 | G22: 1690 | H22: 2018 | I22: 24177 | J22: 7741 | K22: 1370 | L22: 50489
A23: 17 | B23: 38.13 | C23: 2940 | D23: 8731 | E23: 1458 | F23: 1736 | G23: 1737 | H23: 2214 | I23: 12474 | J23: 9487 | K23: 1972 | L23: 42749
A24: 18 | B24: 38.13 | C24: 2706 | D24: 7905 | E24: 1282 | F24: 1609 | G24: 1825 | H24: 2043 | I24: 23816 | J24: 8542 | K24: 1670 | L24: 51398
A25: 19 | B25: 38.13 | C25: 2482 | D25: 7024 | E25: 1203 | F25: 1516 | G25: 1768 | H25: 1893 | I25: 10183 | J25: 7313 | K25: 1133 | L25: 34515
A26: 20 | B26: 38.13 | C26: 2517 | D26: 7293 | E26: 1286 | F26: 1637 | G26: 1930 | H26: 1917 | I26: 23566 | J26: 8852 | K26: 1545 | L26: 50543
A27: 21 | B27: 38.13 | C27: 2412 | D27: 6759 | E27: 1135 | F27: 1625 | G27: 1812 | H27: 1874 | I27: 10241 | J27: 7422 | K27: 1139 | L27: 34419
A28: 22 | B28: 38.13 | C28: 2128 | D28: 5862 | E28: 1023 | F28: 1013 | G28: 1364 | H28: 1595 | I28: 22581 | J28: 6612 | K28: 937 | L28: 43115
A29: 23 | B29: 38.13 | C29: 1864 | D29: 5491 | E29: 922 | F29: 1305 | G29: 1465 | H29: 1351 | I29: 18311 | J29: 5311 | K29: 712 | L29: 36732
A30: 24 | B30: 38.13 | C30: 1796 | D30: 5674 | E30: 996 | F30: 1363 | G30: 1198 | H30: 1431 | I30: 22177 | J30: 5005 | K30: 723 | L30: 40363
A31: 25 | B31: 38.13 | C31: 1835 | D31: 5826 | E31: 996 | F31: 1345 | G31: 1143 | H31: 1425 | I31: 15899 | J31: 5163 | K31: 633 | L31: 34265
A32: 26 | B32: 38.13 | C32: 2081 | D32: 6693 | E32: 1136 | F32: 1427 | G32: 1506 | H32: 1633 | I32: 18237 | J32: 5841 | K32: 943 | L32: 39497
A33: 27 | B33: 38.13 | C33: 2181 | D33: 6520 | E33: 1133 | F33: 1563 | G33: 1758 | H33: 1690 | I33: 21787 | J33: 6332 | K33: 1402 | L33: 44366
A34: 28 | B34: 38.13 | C34: 2134 | D34: 5604 | E34: 1083 | F34: 1490 | G34: 1685 | H34: 1547 | I34: 17418 | J34: 5957 | K34: 1002 | L34: 37920
A35: 29 | B35: 38.13 | C35: 1776 | D35: 4856 | E35: 890 | F35: 1230 | G35: 1199 | H35: 1275 | I35: 21216 | J35: 4734 | K35: 596 | L35: 37772
A36: 30 | B36: 38.06 | C36: 1528 | D36: 4738 | E36: 860 | F36: 1247 | G36: 1123 | H36: 1190 | I36: 14674 | J36: 4667 | K36: 583 | L36: 30610
A37: 31 | B37: 38.06 | C37: 1649 | D37: 4681 | E37: 862 | F37: 1144 | G37: 1124 | H37: 1206 | I37: 15135 | J37: 4561 | K37: 621 | L37: 30983
A38: Загальний обсяг газу, м3 | C38: =SUM(C7:C37) -> 90198 | D38: 261793 | E38: 44093 | F38: =SUM(F7:F37) -> 51916 | G38: 59294 | H38: 63233 | I38: 611183 | J38: 264165 | K38: 52568 | L38: =SUM(L7:L37) -> 1498443
A39: Енергія, МДж | C39: =SUMPRODUCT(B7:B37,C7:C37) -> 3437863.37 | D39: =SUMPRODUCT(B7:B37,D7:D37) -> 9978285.96 | E39: =SUMPRODUCT(B7:B37,E7:E37) -> 1680597.88 | F39: =SUMPRODUCT(B7:B37,F7:F37) -> 1978791.48 | G39: =SUMPRODUCT(B7:B37,G7:G37) -> 2259987.9 | H39: =SUMPRODUCT(B7:B37,H7:H37) -> 2410124.83 | I39: =SUMPRODUCT(B7:B37,I7:I37) -> 23296495.24 | J39: =SUMPRODUCT(B7:B37,J7:J37) -> 10068460.25 | K39: =SUMPRODUCT(B7:B37,K7:K37) -> 2003498.37 | L39: =SUMPRODUCT(B7:B37,L7:L37) -> 57114105.28
A40: Теплота згоряння (середньозважене значення за місяць), МДж/м³ | C40: =C39/C38 -> 38.1146297 | D40: 38.11517481 | E40: 38.11484544 | F40: 38.1152531 | G40: 38.11495092 | H40: 38.11498474 | I40: 38.11705371 | J40: 38.11428558 | K40: 38.11250894 | L40: =L39/L38 -> 38.11563421
A41: Теплота згоряння (середньозважене значення за місяць), ккал/м³ | C41: =C40*238.8459 -> 9103.523035 | D41: 9103.653232 | E41: 9103.574563 | F41: 9103.671931 | G41: 9103.599757 | H41: 9103.607833 | I41: 9104.102 | J41: 9103.440842 | K41: 9103.016499 | L41: =L40*238.8459 -> 9103.762958
A42: Теплота згоряння (середньозважене значення за місяць), кВт*год./м³ | C42: =C40/3.6 -> 10.58739714 | D42: 10.58754856 | E42: 10.58745707 | F42: 10.58757031 | G42: =G40/3.6 -> 10.58748637 | H42: 10.58749576 | I42: 10.58807048 | J42: 10.58730155 | K42: 10.58680804 | L42: =L40/3.6 -> 10.58767617

Sheet додаток
A2: Додаток до Паспорту фізико-хімічних показників природного газу № 163
A4: Область | B4: ГРС, прямий споживач | C4: Cередньозважене значення вищої теплоти згоряння
C5: МДж/м³ | D5: ккал/м³ | E5: кВт*год./м³
A6: Чернігівська область | B6: ГРС Остер | C6: 38.11 | D6: 9104 | E6: 10.59
B7: ГРС Козелець | C7: 38.12 | D7: 9104 | E7: 10.59
B8: ГРС Чемер | C8: 38.11 | D8: 9104 | E8: 10.59
B9: ГРС Десна | C9: 38.12 | D9: 9104 | E9: 10.59
B10: ГРС Булахів | C10: 38.11 | D10: 9104 | E10: 10.59
B11: ГРС Мостище | C11: 38.11 | D11: 9104 | E11: 10.59
B12: ГРС Бобровиця | C12: 38.12 | D12: 9104 | E12: 10.59
A13: Київська область | B13: ГРС В.Дубечня | C13: 38.11 | D13: 9103 | E13: 10.59
B14: ГРС Жукин | C14: 38.11 | D14: 9103 | E14: 10.59
A15: Середньозважене значення вищої теплоти згоряння по маршруту № 163 | C15: 38.12 | D15: 9104 | E15: 10.59
A19: Начальник управління Чернігівського ЛВУМГ | D19: Шутішин В.О. | F19: 01.06.2017 р.
A20: Підрозділу підприємства, якому підпорядкована лабораторія | D20: прізвище | E20: підпис | F20: дата
A21: Завідувач лабораторією | D21: Лапа І.О. | F21: 01.06.2017 р.
A22: Лабораторія, де здійснювалось вимірювання газу | D22: прізвище | E22: підпис | F22: дата
A23: Начальник служби газовимірювання та метрології | D23: Макаров О.В. | F23: 01.06.2017 р.
A24: Підрозділу, відповідального за облік газу за маршрутом | D24: прізвище | E24: підпис | F24: дата

Sheet variablesList (hidden)
A1: 3 | B1: x:\gaysin | C1: 10, 11, 24, 25, 127, 128, 132, 180, 207, 215 | D1: x:\
B2: x:\Illinci
B3: x:\Talne
